bitfinex/quotes_ETHUSD_20220120
["timestamp","ask_amount","ask_price","bid_price","bid_amount"]
[1642641902570,0.93527,3101.1,3100.9,0.00227369]
[1642641903169,3.01095324,3101.0,3100.9,0.00227369]
[1642641903368,3.43975324,3101.0,3100.9,0.00227369]
[1642641903618,4.43975324,3101.0,3100.9,0.00227369]
[1642641904018,3.90575324,3101.0,3100.9,0.00227369]
[1642641904423,3.01095324,3101.0,3100.9,0.00227369]
[1642641905618,7.52810498,3101.0,3100.9,0.00227369]
[1642641906619,7.52810498,3101.0,3100.7,0.01]
[1642641906620,4.95,3100.9,3100.7,0.01]
[1642641906923,5.3788,3100.9,3100.7,0.01]
[1642641907372,6.1853,3100.9,3100.7,0.01]
[1642641908072,1.1065,3100.9,3100.7,0.01]
[1642641908772,7.21424172,3100.9,3100.7,0.01]
[1642641908972,4.6065,3100.9,3100.7,0.01]
[1642641909274,3.9288,3100.9,3100.7,0.01]
[1642641909476,3.8,3100.9,3100.7,0.01]
[1642641910074,7.22203892,3100.9,3100.7,0.01]
[1642641910274,0.3,3100.9,3100.7,0.01]
[1642641911115,7.5069084,3100.9,3100.7,0.01]
[1642641911317,0.3,3100.9,3100.7,0.01]
[1642641912518,4.45,3100.8,3100.7,0.01]
[1642641912718,2.33236,3100.9,3100.7,0.01]
[1642641912719,3.98505246,3100.9,3100.7,0.01]
[1642641912919,0.3,3100.8,3100.7,0.01113685]
[1642641916466,3.4,3100.8,3100.7,0.01113685]
[1642641916666,3.4,3100.8,3100.6,0.01]
[1642641916667,5.24929,3100.8,3100.6,0.01]
[1642641916867,5.416,3100.7,3100.6,0.01]
[1642641917067,6.016,3100.7,3100.6,0.01]
[1642641917672,7.17685983,3100.6,3100.4,0.01]
[1642641917871,10.06271493,3100.6,3100.4,0.01]
[1642641918072,0.6,3100.5,3100.4,0.01]
[1642641918371,0.6,3100.5,3100.4,0.01170527]
[1642641918821,4.95,3100.4,3099.8,0.01]
[1642641919018,3.5267016,3100.3,3099.8,0.01]
[1642641919218,3.5267016,3100.3,3099.9,0.00284212]
[1642641919219,0.3,3100.2,3099.9,0.00284212]
[1642641919619,1.1066708,3100.2,3099.9,0.00284212]
[1642641919822,1.14227584,3100.2,3099.9,0.00284212]
[1642641920019,1.61337,3100.1,3099.9,0.00284212]
[1642641920421,0.3,3100.0,3099.9,0.00284212]
[1642641920719,1.65157168,3100.0,3099.9,0.00284212]
[1642641921121,1.95157168,3100.0,3099.9,0.00284212]
[1642641923871,0.6,3100.0,3099.9,0.00284212]
[1642641924075,5.9198526,3100.7,3099.9,0.00284212]
[1642641924076,3.5,3100.7,3099.9,0.00284212]
[1642641924477,0.00113685,3100.6,3099.9,0.00284212]
[1642641924881,0.00113685,3100.6,3100.5,1.55359432]
[1642641925076,2.10005647,3100.6,3099.9,0.00284212]
[1642641925274,0.3,3100.5,3099.9,2.56371318]
[1642641925477,1.89366497,3100.6,3099.9,2.56371318]
[1642641925675,1.89366497,3100.6,3100.0,0.0022737]
[1642641926325,2.70007947,3100.6,3100.4,1.47824098]
[1642641926727,2.73652043,3100.6,3100.4,1.47824098]
[1642641928230,2.73652043,3100.6,3100.0,0.0022737]
[1642641929432,1.64422246,3100.5,3100.1,1.28585874]
[1642641929632,0.03124386,3100.5,3100.1,1.28585874]
[1642641929865,0.83772036,3100.5,3100.1,0.28699559]
[1642641930068,0.00113685,3100.4,3100.1,0.28699559]
[1642641930670,0.00113685,3100.4,3099.9,0.80644]
[1642641930869,0.8064947,3100.3,3099.8,0.01]
[1642641931069,0.3,3100.2,3100.0,0.00113685]
[1642641931669,0.84076318,3100.3,3100.0,0.00113685]
[1642641932070,0.3,3100.2,3100.0,0.00113685]
[1642641932271,0.84445102,3100.1,3100.0,0.00113685]
[1642641934437,6.59260007,3100.1,3100.0,0.00113685]
[1642641935033,3.92626175,3100.1,3100.0,0.00113685]
[1642641935234,7.24947257,3100.1,3100.0,0.00113685]
[1642641935429,4.73291175,3100.1,3100.0,0.00113685]
[1642641936330,7.2502099,3100.1,3100.0,0.00113685]
[1642641936932,4.73291175,3100.1,3100.0,0.00113685]
[1642641937381,3.92626175,3100.1,3100.0,0.00113685]
[1642641940884,6.47386241,3100.1,3100.0,0.00113685]
[1642641941122,4.05526175,3100.1,3100.0,0.00113685]
[1642641942122,3.92626175,3100.1,3100.0,0.00113685]
[1642641942526,6.44377468,3100.1,3100.0,0.00113685]
[1642641942934,0.80674,3100.0,3099.8,0.01]
[1642641943230,5.845,3099.9,3099.8,0.01]
[1642641943427,5.845,3099.9,3098.9,0.01]
[1642641943629,1.26309663,3099.5,3098.9,0.01]
[1642641943826,1.96777328,3099.4,3098.9,0.01]
[1642641944229,0.84145757,3099.4,3099.3,0.01397896]
[1642641944429,1.3432,3100.1,3099.3,0.01397896]
[1642641944627,1.2142,3100.1,3099.1,0.91397896]
[1642641944872,0.00397896,3100.0,3099.4,0.80658]
[1642641945072,5.0,3099.8,3099.1,1.61311]
[1642641945276,5.0,3099.8,3098.9,0.01]
[1642641945277,0.81948719,3099.6,3098.9,0.01]
[1642641945577,0.81948719,3099.6,3099.0,0.00170527]
[1642641945578,2.21000575,3099.5,3099.0,0.00170527]
[1642641945772,0.80694,3099.4,3099.0,0.00170527]
[1642641945972,2.84968162,3099.5,3099.0,0.00170527]
[1642641946172,1.11401809,3099.4,3099.0,0.00170527]
[1642641946377,1.92095259,3099.4,3099.0,0.00170527]
[1642641946572,1.95937958,3099.4,3099.0,0.00170527]
[1642641946972,0.80686,3099.3,3099.0,0.00170527]
[1642641947175,0.429,3099.3,3099.0,0.00170527]
[1642641947377,0.3,3099.2,3099.0,0.00170527]
[1642641947577,0.429,3099.1,3099.0,0.00170527]
[1642641949037,2.679,3099.1,3099.0,0.00170527]
[1642641949434,3.48597,3099.1,3099.0,0.00170527]
[1642641950035,1.23597,3099.1,3099.0,0.00170527]
[1642641950637,0.429,3099.1,3099.0,0.00170527]
[1642641950843,32.79061,3100.2,3099.4,0.17766811]
[1642641951039,1.93616496,3099.5,3099.4,0.17766811]
[1642641951436,0.00113684,3099.7,3099.4,0.17766811]
[1642641951641,1.13637423,3099.5,3099.4,0.17766811]
[1642641951836,0.466,3099.5,3099.4,0.17766811]
[1642641952036,2.07979,3099.5,3099.4,1.31054261]
[1642641952290,2.07979,3099.5,3099.3,0.8068484]
[1642641952483,2.5807449,3099.4,3099.0,0.13197612]
[1642641952682,2.5807449,3099.4,3099.0,0.00284212]
[1642641952882,2.5807449,3099.4,3099.1,0.0022737]
[1642641953082,2.5807449,3099.4,3099.0,0.00284212]
[1642641953485,1.32510918,3099.2,3099.0,0.00284212]
[1642641953682,2.93911918,3099.2,3099.0,0.00284212]
[1642641954683,0.80701,3099.1,3099.0,0.00284212]
[1642641954887,4.00701,3099.1,3099.0,0.00284212]
[1642641955688,6.56024449,3099.1,3099.0,0.00284212]
[1642641955886,4.00701,3099.1,3099.0,0.00284212]
[1642641956326,0.80701,3099.1,3099.0,0.00284212]
[1642641956524,1.27298,3099.5,3099.0,0.80963212]
[1642641956525,0.466,3099.5,3099.0,0.80963212]
[1642641956726,0.13013684,3099.7,3099.0,0.80963212]
[1642641956727,0.00113684,3099.7,3099.0,0.80963212]
[1642641956927,0.00113684,3099.7,3099.1,1.109059]
[1642641957125,0.00113684,3099.7,3099.2,0.129]
[1642641957330,0.00113684,3099.7,3099.2,0.13070527]
[1642641957528,0.00113684,3099.7,3099.3,0.00113685]
[1642641957930,0.80790684,3099.7,3099.3,0.00113685]
[1642641958735,0.00113684,3099.7,3099.3,0.00113685]
[1642641959031,0.80788684,3099.7,3099.3,0.00113685]
[1642641959231,0.80788684,3099.7,3099.4,1.21389855]
[1642641959634,0.00113684,3099.7,3099.4,1.21389855]
[1642641960098,0.00113684,3099.7,3099.5,1.28887311]
[1642641961999,0.00113684,3099.7,3099.6,3.579]
[1642641962200,0.00113684,3099.7,3099.6,0.129]
[1642641962802,0.00113684,3099.7,3099.6,2.579]
[1642641963003,0.00113684,3099.7,3099.6,0.129]
[1642641963625,0.00113684,3099.7,3099.5,2.09551121]
[1642641964931,0.00113684,3099.7,3099.5,1.28887311]
[1642641965733,0.00113684,3099.7,3099.5,2.09554501]
[1642641966932,0.00113684,3099.7,3099.5,3.39554501]
[1642641967132,0.00113684,3099.7,3099.6,4.029]
[1642641967778,0.00113684,3099.7,3099.6,0.129]
[1642641968680,0.00113684,3099.7,3099.5,2.09554501]
[1642641969082,0.00113684,3099.7,3099.5,3.09554501]
[1642641969482,0.00113684,3099.7,3099.5,2.09554501]
[1642641974774,0.00113684,3099.7,3099.6,2.49043068]
[1642641974975,0.00113684,3099.7,3099.5,2.39554501]
[1642641975875,0.00113684,3099.7,3099.6,5.10646]
[1642641976078,0.00113684,3099.7,3099.6,0.80646]
[1642641976277,0.00011519,3099.7,3099.5,2.39554501]
[1642641976480,0.00011519,3099.7,3099.5,1.1066719]
[1642641977678,0.00011519,3099.7,3099.5,2.1066719]
[1642641977878,0.00011519,3099.7,3099.5,1.1066719]
[1642641978078,0.00011519,3099.7,3099.6,3.55648]
[1642641978724,0.00011519,3099.7,3099.6,0.80648]
[1642641979332,0.00011519,3099.7,3099.6,1.10648]
[1642641980132,0.00011519,3099.7,3099.6,1.23548]
[1642641980932,0.00011519,3099.7,3099.6,0.93548]
[1642641981532,0.00011519,3099.7,3099.6,3.36564306]
[1642641981736,0.00011519,3099.7,3099.6,4.53714444]
[1642641982134,0.129,3101.1,3099.7,5.0]
[1642641982385,2.74726467,3101.0,3100.0,1.61252]
[1642641982583,0.00511582,3100.6,3100.1,2.80944841]
[1642641982787,0.00682109,3100.9,3100.1,2.80944841]
[1642641982986,1.20454301,3101.0,3100.6,1.56046879]
[1642641983284,3.04721412,3100.9,3100.1,0.129]
[1642641983485,3.04721412,3100.9,3100.0,0.3]
[1642641983486,2.87621412,3100.8,3100.0,0.3]
[1642641983686,2.74721412,3100.7,3099.9,1.2128]
[1642641983884,3.55942836,3100.7,3099.8,3.3169]
[1642641984186,2.75232994,3100.6,3100.0,1.6130513]
[1642641984384,0.00511582,3100.6,3100.1,0.80647]
[1642641984586,0.00454739,3100.5,3100.1,1.61292]
[1642641984982,1.3317,3100.9,3100.1,1.91292]
[1642641984983,0.00397897,3100.4,3100.1,1.91292]
[1642641985384,0.00341055,3100.3,3100.1,2.7194433]
[1642641985783,0.00284212,3100.2,3100.1,2.7194433]
[1642641986059,0.00284212,3100.2,3100.1,1.9129733]
[1642641987553,0.00284212,3100.2,3100.1,9.35261023]
[1642641987753,0.00284212,3100.2,3100.1,4.78161023]
[1642641988554,0.00284212,3100.2,3100.1,2.3419733]
[1642641988753,0.00284212,3100.2,3100.1,2.0419733]
[1642641988957,0.00284212,3100.2,3100.1,1.5355233]
[1642641989158,0.00284212,3100.2,3100.1,1.2355233]
[1642641992577,0.00284212,3100.2,3100.1,1.1065233]
[1642641993628,1.49839034,3100.2,3100.1,1.1065233]
[1642641994832,1.49839034,3100.2,3100.1,0.8065233]
[1642641995438,1.62739034,3100.2,3100.1,0.8065233]
[1642641995636,1.49839034,3100.2,3100.1,0.8065233]
[1642641996039,4.24629062,3100.2,3100.1,0.8065233]
[1642641996237,1.49839034,3100.2,3100.1,0.8065233]
[1642641996437,4.24624474,3100.2,3100.1,0.8065233]
[1642641996638,1.49839034,3100.2,3100.1,0.8065233]
[1642641997385,4.24621847,3100.2,3100.1,0.8065233]
[1642641997587,1.49839034,3100.2,3100.1,0.8065233]
[1642641998685,4.24618699,3100.2,3100.1,0.8065233]
[1642641998886,1.49839034,3100.2,3100.1,0.8065233]
[1642641999586,4.24617942,3100.2,3100.1,0.8065233]
[1642642000891,2.7506312,3100.2,3100.1,1.1065233]
[1642642001138,0.00284212,3100.2,3100.1,3.78886833]
[1642642001536,0.00284212,3100.2,3100.1,1.2355233]
[1642642001937,0.00284212,3100.2,3100.1,4.15483755]
[1642642002536,0.00284212,3100.2,3100.1,6.58194599]
[1642642002938,0.00284212,3100.2,3100.1,4.15483755]
[1642642003341,0.00284212,3100.2,3100.1,2.49651712]
[1642642003540,0.00284212,3100.2,3100.1,0.8065233]
[1642642004543,2.86825609,3100.2,3100.0,0.12909]
[1642642004783,2.74742517,3100.1,3100.0,0.12909]
[1642642004984,2.74969887,3100.1,3099.9,0.8066781]
[1642642005388,0.00170527,3100.0,3099.9,0.8066781]
[1642642007087,2.54440943,3100.0,3099.9,0.8066781]
[1642642007287,6.2275446,3100.0,3099.3,3.32258919]
[1642642007488,6.2275446,3100.0,3099.3,2.19688919]
[1642642007489,2.74742517,3099.9,3099.3,2.19688919]
[1642642007688,2.74856202,3099.9,3099.4,0.00170527]
[1642642007892,1.23404694,3099.7,3099.4,0.00170527]
[1642642008103,1.23404694,3099.7,3099.5,0.129]
[1642642008289,1.23404694,3099.7,3099.4,0.00170527]
[1642642008535,1.23404694,3099.7,3099.5,1.6134372]
[1642642008730,0.80672,3099.8,3099.5,1.6134372]
[1642642008929,0.80672,3099.8,3099.5,1.9134372]
[1642642009936,2.14068115,3099.8,3099.5,1.9134372]
[1642642010136,1.33396115,3099.8,3099.5,1.9134372]
[1642642011237,1.33396115,3099.8,3099.5,1.6134372]
[1642642011437,1.33396115,3099.8,3099.5,1.9134372]
[1642642011637,1.33396115,3099.8,3099.6,0.80666]
[1642642011840,1.33297578,3099.8,3099.6,1.6132843]
[1642642012483,0.00113685,3099.9,3099.6,1.6132843]
[1642642013285,0.00113685,3099.9,3099.7,0.80663]
[1642642013486,2.30121645,3099.9,3099.8,2.06990278]
[1642642013687,5.04919636,3099.9,3099.8,2.06990278]
[1642642014086,5.04919636,3099.9,3099.8,0.8066294]
[1642642014287,5.04920448,3099.9,3099.8,0.8066294]
[1642642015099,6.16680925,3099.9,3099.8,0.8066294]
[1642642015693,5.04920448,3099.9,3099.8,0.8066294]
[1642642016750,9.05324899,3099.9,3099.6,0.8067865]
[1642642016948,3.55474803,3099.8,3099.6,0.8067865]
[1642642017148,2.74798803,3099.7,3099.6,0.8067865]
[1642642017353,0.00113685,3099.9,3099.6,1.1067865]
[1642642017756,0.00113685,3099.9,3099.7,0.129]
[1642642017953,0.00113685,3099.9,3099.7,1.7420857]
[1642642018358,0.00113685,3099.9,3099.8,1.77046392]
[1642642018559,0.00113685,3099.9,3099.8,3.35121362]
[1642642018757,0.00113685,3099.9,3099.8,3.22221362]
[1642642019557,0.00113685,3099.9,3099.8,5.67432484]
[1642642019780,0.00113685,3099.9,3099.8,5.87787722]
[1642642020188,0.00113685,3099.9,3099.8,3.35121362]
[1642642020687,0.00113685,3099.9,3099.8,0.129]
[1642642020894,0.00113685,3099.9,3099.7,0.8065057]
[1642642021086,0.00113685,3099.9,3099.7,1.1065057]
[1642642021889,0.00113685,3099.9,3099.8,3.629]
[1642642022189,0.00113685,3099.9,3099.8,1.09446492]
[1642642022588,0.00113685,3099.9,3099.8,2.63323752]
[1642642022789,2.74762645,3100.5,3099.9,3.05]
[1642642022989,2.74762645,3100.5,3099.9,2.0418652]
[1642642023189,0.00284212,3100.4,3099.9,1.2354452]
[1642642023393,0.00284212,3100.4,3100.0,0.80645]
[1642642023638,0.0022737,3100.3,3100.0,0.80645]
[1642642024038,0.00170527,3100.2,3100.0,0.80645]
[1642642024337,2.74762645,3100.5,3100.0,0.80645]
[1642642024338,0.00113685,3100.1,3100.0,0.80645]
[1642642024539,0.00113685,3100.1,3100.0,1.10645]
[1642642024741,0.00113685,3100.1,3099.9,0.8064452]
[1642642024940,0.00113685,3100.1,3100.0,0.3]
[1642642025341,0.00113685,3100.1,3100.0,7.25633049]
[1642642025542,0.00113685,3100.1,3100.0,3.79058911]
[1642642025745,2.74750358,3100.7,3100.1,5.0]
[1642642025946,2.74750358,3100.6,3100.2,3.21781126]
[1642642026143,0.00341054,3100.7,3100.5,1.12342857]
[1642642026342,0.00341054,3100.7,3100.5,1.42342857]
[1642642026543,0.00284212,3100.6,3100.5,1.1062742]
[1642642030087,0.00284212,3100.6,3100.5,0.8062742]
[1642642031335,2.75024219,3100.6,3100.5,0.8062742]
[1642642032538,0.00284212,3100.6,3100.5,0.8062742]
[1642642035080,0.00284212,3100.6,3100.5,1.1062742]
[1642642035485,0.00284212,3100.6,3100.5,2.59277771]
[1642642035686,0.00284212,3100.6,3100.5,1.1062742]
[1642642035687,2.75024219,3100.6,3100.5,1.1062742]
[1642642035887,0.00284212,3100.6,3100.5,1.1062742]
[1642642039233,0.00284212,3100.6,3100.5,0.8062742]
[1642642039637,2.87924219,3100.6,3100.5,0.8062742]
[1642642039834,3.01665315,3100.6,3100.3,0.8065972]
[1642642040033,2.87640007,3100.5,3100.3,0.8065972]
[1642642040234,1.27404384,3100.3,3100.1,1.6131501]
[1642642040435,5.57995352,3100.2,3099.8,0.129]
[1642642040637,5.57995352,3100.2,3099.1,3.17223396]
[1642642040638,1.27975954,3099.6,3099.2,0.129]
[1642642040837,1.27975954,3099.6,3099.3,0.3]
[1642642041033,3.97687189,3100.2,3099.3,0.8066917]
[1642642041237,2.74799557,3100.1,3099.3,1.6133717]
[1642642041538,0.80667,3100.0,3099.3,0.8066917]
[1642642041938,1.47029966,3099.8,3099.3,0.8066917]
[1642642042138,2.92762,3100.2,3099.4,1.37434203]
[1642642042384,2.92762,3100.2,3099.5,0.129]
[1642642042385,2.74799815,3100.1,3099.5,0.129]
[1642642042582,2.74799815,3100.1,3099.5,0.13241054]
[1642642043182,2.74799815,3100.1,3099.7,1.26296533]
[1642642043385,0.80665,3100.0,3099.8,0.8066494]
[1642642043683,0.80665,3100.0,3099.9,0.00113685]
[1642642043984,3.3977895,3100.0,3099.9,0.00113685]
[1642642044187,3.5546267,3100.0,3099.9,0.00113685]
[1642642047832,2.7479767,3100.0,3099.9,0.00113685]
[1642642048032,0.00170527,3100.4,3099.9,0.00113685]
[1642642048531,0.00113685,3100.3,3099.9,0.00113685]
[1642642048931,0.80656,3100.4,3099.9,0.80761145]
[1642642049132,2.74793028,3100.3,3099.9,0.80761145]
[1642642049338,2.74793028,3100.3,3100.0,1.2155039]
[1642642049339,2.74906713,3100.3,3100.0,1.2155039]
[1642642049782,0.00113685,3100.3,3100.0,2.42294607]
[1642642050586,0.00113685,3100.3,3100.0,1.2155039]
[1642642050884,0.00113685,3100.3,3099.9,0.80761145]
[1642642051283,2.74906713,3100.3,3099.9,0.80761145]
[1642642051485,2.56491385,3100.2,3099.9,0.93670445]
[1642642051784,5.65358236,3100.1,3099.9,0.1293381]
[1642642051986,2.87693028,3100.0,3099.9,0.1293381]
[1642642052185,2.74793028,3100.0,3099.9,0.1293381]
[1642642052387,2.74793028,3100.0,3099.9,0.00113685]
[1642642052988,5.25594902,3100.0,3099.9,0.00113685]
[1642642053188,5.38494902,3100.0,3099.9,0.00113685]
[1642642053387,6.99848902,3100.0,3099.7,0.0022737]
[1642642053638,2.74793028,3099.9,3099.7,0.8090285]
[1642642054036,3.55470028,3099.9,3099.8,0.00170527]
[1642642055437,2.74793028,3099.9,3099.8,0.00170527]
[1642642055839,1.3793732,3100.1,3099.8,0.00170527]
[1642642056042,2.7481316,3099.9,3099.8,1.61501647]
[1642642056238,5.48545139,3100.0,3099.8,1.61501647]
[1642642056438,5.24768648,3099.9,3099.8,0.00170527]
[1642642056639,5.24768648,3099.9,3099.3,0.3]
[1642642056839,5.24768648,3099.9,3099.1,0.3]
[1642642056840,2.7481316,3099.8,3099.1,0.3]
[1642642057039,2.7481316,3099.8,3099.0,4.8016]
[1642642057282,2.7481316,3099.8,3099.2,0.00511581]
[1642642057683,3.5549316,3099.8,3099.2,1.13632634]
[1642642057883,2.7481316,3099.7,3099.4,1.613494]
[1642642058283,1.6136,3099.9,3099.5,0.00341054]
[1642642058284,4.09615332,3099.9,3099.5,0.00341054]
[1642642058584,4.36192946,3099.8,3099.5,0.8067967]
[1642642058784,2.87732946,3099.7,3099.5,0.8067967]
[1642642058982,2.87732946,3099.7,3099.6,0.00284212]
[1642642058983,0.93582,3099.7,3099.6,0.00284212]
[1642642060182,0.80682,3099.7,3099.6,0.00284212]
[1642642060585,0.80682,3099.7,3099.6,0.00409746]
[1642642064242,1.10682,3099.7,3099.6,0.00409746]
[1642642064442,0.80682,3099.7,3099.6,0.00409746]
[1642642067501,1.40169,3100.0,3099.6,0.00409746]
[1642642067704,1.3793732,3100.1,3099.6,0.00409746]
[1642642067900,1.3793732,3100.1,3099.7,0.0022737]
[1642642068099,1.3793732,3100.1,3099.7,0.81015894]
[1642642068304,0.129,3100.2,3099.7,1.61672894]
[1642642068535,0.129,3100.2,3099.8,0.00170527]
[1642642068730,0.129,3100.2,3099.8,0.00296061]
[1642642069131,0.129,3100.2,3099.9,0.00113685]
[1642642069331,1.21943685,3100.3,3100.0,1.36471734]
[1642642069531,0.00113685,3100.3,3100.0,1.36597268]
[1642642070535,0.00113685,3100.3,3100.0,2.97900838]
[1642642071335,0.00113685,3100.3,3100.0,2.17250838]
[1642642071933,0.00113685,3100.3,3100.0,0.80779104]
[1642642072788,3.59285273,3100.1,3100.0,0.80779104]
[1642642072995,0.00113685,3100.3,3100.0,0.80779104]
[1642642073991,0.00113685,3100.3,3100.1,1.56020475]
[1642642074196,0.00113685,3100.3,3100.1,3.17436709]
[1642642074392,0.00113685,3100.3,3100.1,3.30336709]
[1642642074794,0.00113685,3100.3,3100.1,3.00336709]
[1642642074994,0.00113685,3100.3,3100.1,2.19688709]
[1642642075293,0.00113685,3100.3,3100.1,0.93668234]
[1642642075294,1.21574168,3100.3,3100.1,0.93668234]
[1642642075499,2.74799032,3100.2,3100.1,0.93668234]
[1642642076138,2.74799032,3100.2,3100.1,0.13025534]
[1642642076139,5.38524415,3100.2,3100.1,0.13025534]
[1642642076335,7.13109485,3100.2,3100.1,0.13025534]
[1642642077036,7.59709485,3100.2,3100.1,0.13025534]
[1642642077235,9.21053485,3100.2,3100.1,0.13025534]
[1642642077638,9.34797121,3100.2,3100.1,0.13025534]
[1642642078045,10.34797121,3100.2,3100.1,0.13025534]
[1642642080183,10.21053485,3100.2,3100.1,0.13025534]
[1642642080384,10.21053485,3100.2,3100.1,0.00125534]
[1642642080786,9.91053485,3100.2,3100.1,0.00125534]
[1642642081385,10.21053485,3100.2,3100.1,0.00125534]
[1642642081585,9.91053485,3100.2,3100.1,0.00125534]
[1642642081785,7.40228102,3100.2,3100.1,0.00125534]
[1642642082285,7.70228102,3100.2,3100.1,0.00125534]
[1642642082489,6.89555102,3100.2,3100.1,0.00125534]
[1642642082692,9.43053452,3100.2,3100.1,0.00125534]
[1642642086839,5.0,3100.1,3099.9,0.00113685]
[1642642087039,5.0,3100.1,3099.9,0.00239218]
[1642642087040,9.981356,3100.0,3099.9,0.00239218]
[1642642087278,5.781356,3100.0,3099.9,0.00125533]
[1642642087486,3.04799032,3100.0,3099.9,0.00239218]
[1642642095383,5.64951232,3100.0,3099.9,0.00239218]
[1642642095588,5.64951232,3100.0,3099.7,1.6133822]
[1642642095589,6.42816815,3099.9,3099.7,1.6133822]
[1642642095785,6.42816815,3099.9,3099.8,0.00125533]
[1642642095786,7.23504815,3099.9,3099.8,0.00125533]
[1642642095990,10.31905737,3099.9,3099.8,0.00125533]
[1642642096187,7.70104815,3099.9,3099.8,0.00125533]
[1642642096587,10.32376926,3099.9,3099.8,0.00125533]
[1642642096788,10.45276926,3099.9,3099.8,0.00125533]
[1642642097188,7.83004815,3099.9,3099.8,0.00125533]
[1642642097390,10.33736727,3099.9,3099.8,0.00125533]
[1642642097791,2.83004815,3099.9,3099.8,0.00125533]
[1642642098637,5.32460779,3099.9,3099.8,0.00125533]
[1642642099736,2.83004815,3099.9,3099.8,0.00125533]
[1642642100637,2.70104815,3099.9,3099.8,0.00125533]
[1642642102593,1.42816815,3099.9,3099.8,0.00125533]
[1642642104392,1.7585,3100.2,3099.8,2.42108973]
[1642642104593,0.6,3100.2,3099.9,0.3]
[1642642104793,0.00113685,3100.1,3099.9,0.30125533]
[1642642104993,0.00113685,3100.1,3100.0,0.129]
[1642642105194,0.00113685,3100.1,3100.0,0.00125533]
[1642642109135,2.30113685,3100.1,3100.0,0.00125533]
[1642642109334,4.81334282,3100.1,3100.0,0.00125533]
[1642642109535,5.7999849,3100.1,3100.0,0.00125533]
[1642642110187,5.79613685,3100.1,3100.0,0.00125533]
[1642642110586,3.19613685,3100.1,3100.0,0.00125533]
[1642642110786,5.94464326,3100.1,3100.0,0.00125533]
[1642642112592,3.64464326,3100.1,3100.0,0.00125533]
[1642642112794,3.21564326,3100.1,3100.0,0.00125533]
[1642642112994,2.74964326,3100.1,3100.0,0.00125533]
[1642642115339,2.87864326,3100.1,3100.0,0.00125533]
[1642642116138,2.74964326,3100.1,3100.0,0.00125533]
[1642642120195,3.21564326,3100.1,3100.0,0.00125533]
[1642642120394,3.51564326,3100.1,3100.0,0.00125533]
[1642642120601,3.64464326,3100.1,3100.0,0.00125533]
[1642642123837,3.21564326,3100.1,3100.0,0.00125533]
[1642642124237,3.35307798,3100.1,3100.0,0.00125533]
[1642642124643,3.65307798,3100.1,3100.0,0.00125533]
[1642642125784,3.35307798,3100.1,3100.0,0.00125533]
[1642642126286,3.65307798,3100.1,3100.0,0.00125533]
[1642642126785,3.64464326,3100.1,3100.0,0.00125533]
[1642642128191,4.1,3100.0,3099.9,0.25125533]
[1642642128392,2.87750641,3100.0,3099.9,0.25125533]
[1642642129442,2.74850641,3100.0,3099.9,0.25125533]
[1642642130945,3.21450641,3100.0,3099.9,0.25125533]
[1642642133485,3.21450641,3100.0,3099.8,3.2267463]
[1642642133686,3.21450641,3100.0,3099.8,1.6135784]
[1642642133687,2.74850641,3099.9,3099.8,1.6135784]
[1642642134086,2.74850641,3099.9,3099.8,0.8067845]
[1642642137033,3.21450641,3099.9,3099.8,0.8067845]
[1642642140482,2.74850641,3099.9,3099.8,0.8067845]
[1642642140684,2.74850641,3100.1,3099.8,0.8067845]
[1642642140887,2.74850641,3100.1,3099.8,2.420019]
[1642642141284,2.74850641,3100.1,3099.9,0.8066083]
[1642642141487,3.17750641,3100.1,3099.9,0.8066083]
[1642642141686,2.74850641,3100.0,3099.8,1.6132345]
[1642642142288,2.74850641,3100.0,3099.7,0.8068066]
[1642642142289,3.55528641,3100.0,3099.7,0.8068066]
[1642642142490,3.34350641,3099.9,3099.7,0.8068066]
[1642642142692,3.04850641,3099.8,3099.7,0.8068066]
[1642642142896,3.51450641,3099.8,3099.7,0.8068066]
[1642642143094,1.3963908,3099.6,3099.2,1.2075]
[1642642143396,1.3963908,3099.6,3099.0,1.613721]
[1642642143397,1.14647571,3099.3,3099.0,1.613721]
[1642642143643,3.21450641,3099.2,3099.0,1.613721]
[1642642143847,3.21450641,3099.2,3098.9,0.01]
[1642642143848,0.466,3099.2,3099.1,0.00454739]
[1642642144245,0.466,3099.2,3099.0,0.00511581]
[1642642144444,5.129,3099.1,3099.0,0.00511581]
[1642642144645,6.895,3099.1,3099.0,0.00511581]
[1642642145450,5.0,3099.0,3098.9,0.01]
[1642642145647,6.595,3099.0,3098.9,0.01]
[1642642145847,7.40221,3099.0,3098.9,0.01]
[1642642148690,1.40221,3099.0,3098.9,0.01]
[1642642148891,2.27321,3099.0,3098.9,0.01]
[1642642154447,1.27321,3099.0,3098.9,0.01]
[1642642157093,1.224802,3099.0,3098.9,0.01]
[1642642157891,0.417592,3099.0,3098.9,0.01]
[1642642159532,0.80692,3099.1,3098.9,0.01]
[1642642159734,0.466,3099.9,3099.0,0.129]
[1642642159935,2.74865457,3099.8,3099.0,0.129]
[1642642160143,0.00113685,3099.2,3099.0,0.129]
[1642642160343,0.00113685,3099.2,3098.9,0.01]
[1642642160541,0.00113685,3099.2,3099.1,0.8067355]
[1642642163736,2.75005174,3099.2,3098.9,0.01]
[1642642163931,3.21605174,3099.2,3098.9,0.01]
[1642642164133,2.74891489,3099.1,3098.9,0.01]
[1642642164331,4.166,3099.0,3098.9,0.01]
[1642642164531,6.91491489,3099.0,3098.9,0.01]
[1642642164732,7.72200489,3099.0,3098.9,0.01]
[1642642165932,10.23411243,3099.0,3098.9,0.01]
[1642642166740,11.36311243,3099.0,3098.9,0.01]
[1642642167940,8.85100489,3099.0,3098.9,0.01]
[1642642168144,4.15100489,3099.0,3098.9,0.01]
[1642642169645,1.40209,3099.0,3098.9,0.01]
[1642642169892,4.15114053,3099.0,3098.9,0.01]
[1642642170100,5.15114053,3099.0,3098.9,0.01]
[1642642171501,4.15114053,3099.0,3098.9,0.01]
[1642642171901,3.21505053,3099.0,3098.9,0.01]
[1642642172100,0.80802685,3099.2,3099.0,1.1513344]
[1642642172301,0.00113685,3099.2,3099.0,1.1513344]
[1642642172502,0.00113685,3099.2,3098.9,0.01]
[1642642173099,2.7499929,3099.2,3098.9,0.01]
[1642642173300,3.5568829,3099.2,3098.9,0.01]
[1642642173550,0.00113685,3099.2,3099.0,0.8068444]
[1642642173739,0.00113685,3099.2,3099.1,0.3]
[1642642173941,0.00113685,3099.2,3099.1,0.429]
[1642642174543,0.00113685,3099.2,3099.1,1.73691071]
[1642642174744,0.00113685,3099.2,3099.1,1.43691071]